Cogmind - Beta 14 @@@ ROGUE MODE // 2025.03.05 @ 20:07:58 Player: w0rldd3str0y3r Result: Destroyed by D-53 Grenadier with Mini Grenade Launcher Performance ------------- Evolutions (0) 0 Regions Visited (4) 800 Robots Destroyed (37) 185 Value Destroyed (864) 864 Prototype IDs (26) 520 Alien Tech Used (0) 0 Bonus (300) 300 TOTAL SCORE: 2669 Bonus ------- Aligned with FarCom 300 Cogmind --------- Core Integrity 0/250 Matter 290/300 Energy 80/100 System Corruption 3% Temperature Cool (0) Movement Flying (360) Ox4 Location -9/Mines Parts ------- > --- POWER (1) -------- (None) > --- PROPULSION (2) --- Flight Unit > --- UTILITY (2) ------ Improved Heat Sink Medium Storage Unit > --- WEAPON (2) ------- Particle Gun Particle Gun > --- INVENTORY (10) --- Light Nuclear Core Flight Unit Lightpack 2.0 Structural Scanner Improved Terrain Scanner Seismic Detector Propulsion Shielding Peak State ------------ > --- POWER ------------ Ion Engine > --- PROPULSION ------- Aluminum Leg Aluminum Leg > --- UTILITY ---------- Improved Heat Sink Medium Storage Unit > --- WEAPON ----------- Particle Gun Particle Gun > --- INVENTORY -------- Light Nuclear Core Flight Unit Flight Unit Lightpack 2.0 Structural Scanner Improved Terrain Scanner Seismic Detector Propulsion Shielding [Rating: 15] Favorites ----------- Power Ion Engine Engine Ion Engine Propulsion Aluminum Leg Leg Aluminum Leg Wheel Wheel Hover Unit Backup Propulsion I Utility Medium Storage Unit Device Improved Heat Sink Storage Medium Storage Unit Weapon Particle Gun Energy Gun Particle Gun Energy Cannon Beam Cannon Ballistic Gun Assault Rifle Build | -11 -10 -10 -10 -9 ------- Run | Yrd Mat Min Exi Min Slots Evolved . | . . . . . Power . | . . . . . Propulsion . | . . . . . Utility . | . . . . . Weapon . | . . . . . Parts Attached 52 | 7 20 22 . 3 Power 5 | 1 3 1 . . Engine 5 | 1 3 1 . . Core . | . . . . . Reactor . | . . . . . Propulsion 17 | 2 6 7 . 2 Treads . | . . . . . Leg 15 | 2 6 7 . . Wheel 1 | . . . . 1 Hover . | . . . . . Flight 1 | . . . . 1 Utility 14 | 2 6 5 . 1 Device 10 | 1 4 5 . . Storage 4 | 1 2 . . 1 Processor . | . . . . . Hackware . | . . . . . Protection . | . . . . . Artifact . | . . . . . Weapon 16 | 2 5 9 . . Energy Gun 6 | 1 . 5 . . Energy Cannon 2 | . 1 1 . . Ballistic Gun 8 | 1 4 3 . . Ballistic Cannon . | . . . . . Launcher . | . . . . . Special Weapon . | . . . . . Impact Weapon . | . . . . . Slashing Weapon . | . . . . . Piercing Weapon . | . . . . . Special Melee Weapon . | . . . . . Unidentified Prototypes . | . . . . . Corrupted Parts 1 | . . . . 1 System Corruption 3 | . . . . 3 Parts Lost 6 | . 1 2 . 3 Power 2 | . 1 . . 1 Propulsion 2 | . . . . 2 Utility . | . . . . . Weapon 2 | . . 2 . . Highest Loss Streak 3 | . 1 1 . 3 To Critical Strikes . | . . . . . Average Slot Usage (%) 99 | . 99 99 100 99 Engine 13 | . 13 14 14 13 Leg 27 | . 27 28 28 27 Device 14 | . 14 14 14 14 Storage 14 | . 14 14 14 14 Energy Gun 12 | . 6 4 28 28 Energy Cannon 6 | . 6 10 . . Ballistic Gun 9 | . 13 12 . . Peak Build Rating 15 | 8 8 12 15 15 Average Rating 9 | 5 7 8 13 14 On Entrance 8 | . 8 8 12 15 Naked Turns . | . . . . . Heaviest Build 22 | 12 21 22 22 22 Greatest Support 20 | 20 20 20 20 20 Greatest Overweight (x) 6 | . 6 2 1 2 Average Overweight (x) . | . . . 1 1 Largest Inventory Capacity 10 | 8 10 10 10 10 Average Capacity 9 | 7 9 10 10 10 Most Carried 10 | 8 10 10 10 10 Average Carried 9 | 5 9 9 9 10 Final Capacity 10 | 8 10 10 10 10 Final Carried 10 | 8 10 10 10 9 Class Distribution -------------------- 54% | Mutant 45% | Scavenger-Mutant Dominant Class ---------------- Mutant | -10/Materials Scavenger-Mutant | -10/Mines Scavenger-Mutant | -10/Exiles Scavenger-Mutant | -9/Mines Resources | -11 -10 -10 -10 -9 ----------- Run | Yrd Mat Min Exi Min Matter Collected 941 | 281 232 413 . 15 Remotely . | . . . . . Salvage Created 1147 | 139 397 611 . . Parts 80 | 13 27 40 . . Haulers Intercepted 1 | . 1 . . . Recyclers Shooed 2 | 1 . 1 . . Parts Field Recycled . | . . . . . Retrieved Matter . | . . . . . Parts Self-Destructed . | . . . . . Prevented . | . . . . . Kills | -11 -10 -10 -10 -9 ------- Run | Yrd Mat Min Exi Min Combat Hostiles Destroyed 27 | . 11 16 . . Guns 17 | . 8 9 . . Cannons 10 | . 3 7 . . Classes Destroyed 7 | 2 5 . . . Tunneler 4 | 4 . . . . Hauler 1 | . 1 . . . Recycler 2 | 1 . 1 . . Mechanic 1 | . 1 . . . Watcher 2 | . 2 . . . Swarmer 9 | . 6 3 . . Grunt 18 | . 5 13 . . Best Kill Streak 4 | 4 2 3 . . Combat Bots Only 3 | . 2 3 . . Max Kills in Single Turn 2 | 1 1 2 . . Gunslinging . | . . . . . Exploded . | . . . . . Melee . | . . . . . Uniques/NPCs Destroyed . | . . . . . Combat | -11 -10 -10 -10 -9 -------- Run | Yrd Mat Min Exi Min Hostile Shots Fired 141 | . 58 77 . 6 Missed 41 | . 19 22 . . Damage Taken 1389 | . 430 694 . 265 Core 300 | . 45 166 . 89 Absorbed by Shields . | . . . . . Core Remaining (%) 100 | 100 . . . . Volleys Fired 140 | 11 55 74 . . Largest 2 | 2 2 2 . . Hottest 120 | 70 80 120 . . Shots Fired 244 | 22 110 112 . . Gun 162 | 22 79 61 . . Cannon 82 | . 31 51 . . Launcher . | . . . . . Special . | . . . . . Kinetic 105 | 11 55 39 . . Thermal 139 | 11 55 73 . . Explosive . | . . . . . Electromagnetic . | . . . . . Robot Hit Streak 17 | 5 11 17 . . Robot Miss Streak 7 | 3 7 3 . . Penetration Max . | . . . . . Secondary Targets . | . . . . . Shots Hit Robots 136 | 12 59 65 . . Core Hits 60 | 7 26 27 . . Critical Kills . | . . . . . Critical Parts Destroyed . | . . . . . Critical Strikes 2 | . 1 1 . . Burn 2 | . 1 1 . . Melee Attacks . | . . . . . Impact . | . . . . . Slashing . | . . . . . Piercing . | . . . . . Sneak Attacks . | . . . . . Combat Hostiles . | . . . . . Follow-up Attacks . | . . . . . Damage Inflicted 1861 | 132 804 914 . 11 Guns 1297 | 132 585 580 . . Cannons 527 | . 210 317 . . Explosions . | . . . . . Melee . | . . . . . Ramming 37 | . 9 17 . 11 Kinetic 717 | 33 334 350 . . Thermal 1107 | 99 461 547 . . Explosive . | . . . . . Electromagnetic . | . . . . . Impact . | . . . . . Slashing . | . . . . . Piercing . | . . . . . Highest Corruption 3 | . . . . 3 Average Corruption 3 | . . . . 3 Corruption Purged . | . . . . . Corruption Blocked . | . . . . . Overload Shots . | . . . . . Overflow Damage . | . . . . . Projectiles . | . . . . . Explosions . | . . . . . Melee . | . . . . . Knockbacks 1 | . . 1 . . Impact 1 | . . 1 . . Kinetic . | . . . . . Secondary . | . . . . . Self-Inflicted Damage . | . . . . . Shots . | . . . . . Rammed . | . . . . . Targets Rammed 11 | . 4 4 . 3 Kicked 11 | . 4 4 . 3 Crushed . | . . . . . Highest Temperature 574 | 70 156 574 . . Average Temperature 84 | 29 36 137 . . Received Heat Transfer 522 | . 168 354 . . Effects 9 | . . 9 . . Shutdowns 1 | . . 1 . . Energy Bleed 1 | . . 1 . . Interference 3 | . . 3 . . Short Circuit 1 | . . 1 . . Damage (minor) 2 | . . 2 . . Damage (core) 1 | . . 1 . . Siege Activations . | . . . . . Robots Corrupted . | . . . . . Combat Hostiles . | . . . . . Parts Fried . | . . . . . Impact Corruptions . | . . . . . Robots Melted . | . . . . . Combat Hostiles . | . . . . . Parts Melted 6 | 1 2 3 . . Heat Transferred 2828 | 296 1258 1274 . . Parts Sabotaged . | . . . . . Parts Stolen . | . . . . . Parts Stripped . | . . . . . Power Chain Reactions . | . . . . . Alert | -11 -10 -10 -10 -9 ------- Run | Yrd Mat Min Exi Min Peak Influence 343 | 25 343 226 . . Initial 91 | . 16 91 . . Average 78 | 10 81 113 . . Maximum Alert Level 1 | . 1 1 . . Low Security (%) 89 | 100 85 90 . 100 Level 1 10 | . 14 9 . . Level 2 . | . . . . . Level 3 . | . . . . . Level 4 . | . . . . . Level 5 . | . . . . . High Security . | . . . . . Max Security . | . . . . . Squads Dispatched 1 | . 1 . . . Investigation 1 | . 1 . . . Extermination . | . . . . . Reinforcement . | . . . . . Assault . | . . . . . Garrison . | . . . . . Intercept . | . . . . . Searches Triggered . | . . . . . Construction Impeded . | . . . . . Haulers Reinforced . | . . . . . Active Scanning Responses . | . . . . . Cargo Convoy Interrupts . | . . . . . Stealth | -11 -10 -10 -10 -9 --------- Run | Yrd Mat Min Exi Min Distress Signals 2 | . 2 . . . Communications Jammed . | . . . . . Distress Signals . | . . . . . Times Spotted 41 | . 21 17 . 3 Peak Tracking Total 5 | . 5 3 . 3 Tactical Retreats 5 | . 5 . . . Traps | -11 -10 -10 -10 -9 ------- Run | Yrd Mat Min Exi Min Traps Triggered . | . . . . . Indirectly . | . . . . . Trap Hack Attempts . | . . . . . Triggered . | . . . . . Disarmed . | . . . . . Reprogrammed . | . . . . . Reused . | . . . . . Traps Extracted . | . . . . . Installed . | . . . . . Triggered . | . . . . . Machines | -11 -10 -10 -10 -9 ---------- Run | Yrd Mat Min Exi Min Machines Disabled 2 | . 2 . . . Max in Single Turn 1 | . 1 . . . Machines Repaired . | . . . . . Machines Dismantled . | . . . . . Machines Sabotaged . | . . . . . Overloaded Fab Kills . | . . . . . Hacking | -11 -10 -10 -10 -9 --------- Run | Yrd Mat Min Exi Min Machines Accessed 8 | . 6 . 2 . Terminals 5 | . 5 . . . Fabricators . | . . . . . Repair Stations 1 | . 1 . . . Recycling Units . | . . . . . Scanalyzers . | . . . . . Garrison Access . | . . . . . Total Hacks 22 | . 20 . 2 . Successful 12 | . 10 . 2 . Failed 10 | . 10 . . . Catastrophic 2 | . 2 . . . Database Lockouts . | . . . . . Manual 5 | . 4 . 1 . Terminals 17 | . 17 . . . Fabricators . | . . . . . Repair Stations 3 | . 3 . . . Recycling Units . | . . . . . Scanalyzers . | . . . . . Garrison Access . | . . . . . Terminal Hacks 11 | . 9 . 2 . Record 1 | . . . 1 . Prototype ID Bank 2 | . 2 . . . Locate Traps 1 | . 1 . . . Surveillance Status 1 | . 1 . . . Patrol Status 1 | . 1 . . . Hauler Manifests 1 | . 1 . . . Zone Layout 3 | . 3 . . . Derelict Proto ID Bank 1 | . . . 1 . Fabricator Hacks . | . . . . . Repair Station Hacks 1 | . 1 . . . Refit 1 | . 1 . . . Recycling Unit Hacks . | . . . . . Scanalyzer . | . . . . . Garrison Access Hacks . | . . . . . Unauthorized Hacks . | . . . . . Terminals . | . . . . . Fabricators . | . . . . . Repair Stations . | . . . . . Recycling Units . | . . . . . Scanalyzers . | . . . . . Garrison Access . | . . . . . Data Cores Recovered . | . . . . . Used . | . . . . . Hacking Detections 4 | . 4 . . . Full Trace Events 1 | . 1 . . . Feedback Events . | . . . . . Feedback Blocked . | . . . . . Robot Schematics Acquired . | . . . . . Robots Built . | . . . . . Authchips . | . . . . . Time . | . . . . . Total Robot Build Rating . | . . . . . Part Schematics Acquired . | . . . . . Parts Built . | . . . . . Authchips . | . . . . . Time . | . . . . . Total Part Build Rating . | . . . . . Parts Repaired . | . . . . . Time . | . . . . . Parts Recycled . | . . . . . Recycled Matter . | . . . . . Retrieved Matter . | . . . . . Retrieved Components . | . . . . . Parts Scanalyzed . | . . . . . Part Schematics Acquired . | . . . . . Parts Damaged . | . . . . . Bothacking | -11 -10 -10 -10 -9 ------------ Run | Yrd Mat Min Exi Min Used RIF Installer . | . . . . . Robots Hacked . | . . . . . Non-combat . | . . . . . Combat . | . . . . . Robot Hacks Applied . | . . . . . Relay Couplers Released . | . . . . . Fabnet Peak Effective % . | . . . . . Robots Rewired . | . . . . . Allies Hacked . | . . . . . Hacks Repelled . | . . . . . Allies | -11 -10 -10 -10 -9 -------- Run | Yrd Mat Min Exi Min Total Allies 3 | . . . . 3 Largest Group 3 | . . . . 3 Highest-Rated Group 40 | . . . . 40 Highest-Rated Ally 16 | . . . . 16 Total Orders . | . . . . . Ally Attacks 4 | . . . . 4 Total Damage 44 | . . . . 44 Kills . | . . . . . Allies Corrupted . | . . . . . Allies Melted . | . . . . . Intel | -11 -10 -10 -10 -9 ------- Run | Yrd Mat Min Exi Min Robot Analysis Total . | . . . . . Derelict Logs Recovered 2 | . . 1 . 1 Drone Launches . | . . . . . Drone Recoveries . | . . . . . Exploration | -11 -10 -10 -10 -9 ------------- Run | Yrd Mat Min Exi Min Turns Passed 3303 | 142 1275 1018 474 394 Spaces Moved 1648 | 80 692 425 249 202 Core 5 | 4 1 . . . Treads . | . . . . . Legs 1633 | 76 688 425 249 195 Wheels 7 | . . . . 7 Hover 3 | . 3 . . . Flight . | . . . . . Fastest Speed 50 | 50 120 120 190 95 Average Speed 151 | 116 125 162 190 187 Slowest Speed 350 | 120 350 260 190 260 Overloaded Moves . | . . . . . Propulsion Burnouts . | . . . . . Robots Hopped . | . . . . . Cave-ins Triggered . | . . . . . Exploration Rate (%) 56 | 5 91 85 61 38 Regions Visited 4 Branch Regions 3 Pre-discovered Areas 2 | . . 1 1 . Known Exits Taken . | . . . . . Unknown Exits Taken 4 | 1 1 1 1 . Scrap Searched . | . . . . . Spaces Dug . | . . . . . Terrain Destroyed . | . . . . . Melee . | . . . . . Projectile . | . . . . . AOE . | . . . . . Terrain Rammed . | . . . . . Walls Destroyed . | . . . . . Machines Disabled . | . . . . . Actions | -11 -10 -10 -10 -9 --------- Run | Yrd Mat Min Exi Min Total 2214 | 105 996 645 252 216 Wait 288 | . 180 102 . 6 Move 1644 | 79 691 424 248 202 Hop . | . . . . . Pick Up 28 | 8 17 2 1 . Fast Attach 20 | 7 4 8 . 1 Attach 4 | . 2 1 . 1 Detach . | . . . . . Swap 28 | . 14 13 . 1 Drop 51 | . 29 17 3 2 Fire 140 | 11 55 74 . . Melee . | . . . . . Ram . | . . . . . Kick 11 | . 4 4 . 3 Crush . | . . . . . Escape Stasis . | . . . . . Rewire . | . . . . . Trap . | . . . . . Miscellaneous . | . . . . . Route ------- -11/Scrapyard -10/Materials (discovered 3 exits: [*Mat x2] / [*Min]) -10/Mines (discovered 3 exits: [*Mat x2] / *Exi) -10/Exiles (discovered 2 exits: [*Min x2]) -9/Mines History --------- Turn | Location | Event 3 | -11/Scrapyard | Discovered new exit (range 15) 143 | -11/Scrapyard | Entered Materials 308 | -10/Materials | Build established: Mutant 404 | -10/Materials | Discovered new exit (range 16) 874 | -10/Materials | Discovered new exit (range 12) 951 | -10/Materials | Discovered new exit (range 12) 1418 | -10/Materials | Entered Mines 1544 | -10/Mines | Excavation squad dispatched 1544 | -10/Mines | A large section of the Mines collapsed 1794 | -10/Mines | Excavation squad dispatched 1974 | -10/Mines | Core integrity fell below 50% 2044 | -10/Mines | Excavation squad dispatched 2095 | -10/Mines | Build established: Scavenger-Mutant 2162 | -10/Mines | Learned location of Mines (-9) 2191 | -10/Mines | Discovered new exit (range 5) 2281 | -10/Mines | Discovered new exit (range 9) 2353 | -10/Mines | Core integrity fell below 20% 2427 | -10/Mines | Deemed a non-threat by the Exiles lab entrance 2429 | -10/Mines | Discovered new exit (range 5) 2436 | -10/Mines | Entered Exiles 2461 | -10/Exiles | Discovered new exit (range 15) 2484 | -10/Exiles | Met 8R-AWN 2516 | -10/Exiles | Met EX-HEX 2590 | -10/Exiles | Met EX-DEC 2598 | -10/Exiles | Learned location of Zion (-6) 2630 | -10/Exiles | Met EX-BIN 2657 | -10/Exiles | Aligned with FarCom system 2659 | -10/Exiles | Given EX-Vault access code 2706 | -10/Exiles | Opened EX-Vault 2725 | -10/Exiles | Found Lightpack 2.0 2764 | -10/Exiles | Warned to stay clear of 0b10 Research branches 2786 | -10/Exiles | Exiles lab attacked by MAIN.C 2884 | -10/Exiles | Discovered new exit (range 14) 2910 | -10/Exiles | Left Exiles lab with Lightpack 2.0 2910 | -10/Exiles | Entered Mines 2986 | -9/Mines | Assisted by bots powering up and referring to "LRC-V3" 3001 | -9/Mines | Learned 4 Materials zone layouts 3033 | -9/Mines | Assembled infested the area 3038 | -9/Mines | Assisted by a Guerilla fighting off Assembled 3300 | -9/Mines | Lost 3 allies 3304 | -9/Mines | Destroyed by D-53 Grenadier with Mini Grenade Launcher Last Messages --------------- 03264_ K-01 Serf collects debris. 03267_ The unstable cave ceiling collapses. 03267_ Trooper 2b destroyed. 03268_ K-01 Serf collects debris. 03269_ The unstable cave ceiling collapses. 03269_ Trooper 2a destroyed. 03271_ The unstable cave ceiling collapses. 03274_ K-01 Serf collects debris. 03275_ The unstable cave ceiling collapses. 03276_ U-05 Engineer lays Concrete. 03282_ U-05 Engineer builds a Wall. 03292_ Dropped Aluminum Leg. 03295_ Acquired Corrupted Wheel. 03295_ Integrated Corrupted Wheel (+3). 03297_ Acquired 5 matter. 03298_ Ion Engine destroyed. 03302_ Aluminum Leg destroyed. 03303_ The unstable cave ceiling collapses. 03304_ Wheel destroyed. 03304_ R-06 Scavenger destroyed. Map ----- +----------------------------------------------------+ | ?????????????????????????????????????????????????? | | ?????????????????????????????????????????????????? | | ?????????????????????????????????????????????????? | | ?????????????????????????????????????????????????? | | ?????????????????????????????????????????????????? | | ?????????????????????????????????????????????????? | | ?????????????????????????????????????????????????? | | ?????????????????????????????????????????????????? | | ?????????????????????????????????????????????????? | | ?????????????????????????????????????????????????? | | ?????????????????????????????????????????????????? | | ?????????????????????????????????????????????????? | | ?????????????????????????????????????????????????? | | ?????????????????????????????????????????????????? | | ?????????????????????????????????????????????????? | | ?????????????????????????????????????????????????? | | ????????????????????????????#####????????????????? | | ????????????????????????????#%%%?????????????????? | | ???????????????????????????## %#####?????????????? | | ???????????????????????????# % # #?????????????? | | ???????????????????????##### a #?????????? ?? | | ???????????????????????# = #?????????# ?? | | ?????????????????????### #???????? ? | | ?????????????????????# % ##??????? ? | | ?????????????????###### #??????? #? | | ????????????# % @ #??????? # | | ?????????????????###### < #??##### # | | ????????????????????? * # # # # | | ????????????????????##| [ ##%# | | ?????????????????######==# d########% % | | ?????????????????#% % %%## d% % | | ?????????????????# "##### | | ?????????????????# ##???# ##### % | | ?????????????????# #????# # # # [ | | ?????????????????# #????########?#### % ### | | ?????????????????# #????????????????# # [ #?? | | ?????????????????# #????????????????### # % #?? | | ?????????????????# #?????????????????### = # #?? | | ????####?????????# #?????????????????##### # ##?? | | ???## #????????#%#?????????????????# # #?#??? | | ??## ######??# #??????????????????# #????? | | ?## ##?# #??????????????????## ##???? | | ## ? ###%#???????????????????# ##??? | | # ??????# ## #??????????????????## #??? | | # ???##### ##?????????????????# #??? | | # ???# ##????????????????# ##??? | | ???# ##???????????????## ##???? | | #### ####?????????????## ##????? | | ##?????????????# #?????? | | # !! #?????????????# #?????? | +----------------------------------------------------+ Best States ------------- Heat Dissipation 39 Energy Generation 10 Energy Capacity 250 Matter Stores 300 Matter Capacity 300 Sight Range 16 Terrain Scan Density 10 Evasion (%) 55 Item Schematics ----------------- None Robot Schematics ------------------ None Fabricated ------------ Nothing Alien Tech Used ----------------- None Achievements -------------- None Challenges ------------ None Game ------ Seed TeslaCorruptionLattice Manual? 0 Play Time 00:20:43 Cumulative 48.7 hours Start 2025.03.05 @ 19:49:02 End 2025.03.05 @ 20:07:58 Sessions 1 Manual Loads 0 Difficulty Rogue Special Mode None Game No. 58 Rogue 58 Adventurer 0 Explorer 0 Win Type - Total 0 Types 0/0/0/0/0/0/0/0/0 Lore% 32 Gallery% 39 Achievement% 31 Wizard Run 0 Options --------- Layout 0 ASCII 0 Keyboard 1 Movement Numpad Keybinds 0 Fullscreen 1 Font 18/SmallcapsGlow Map View 76x50 Zoom Use 0% Tactical HUD 1 Map Filters NONE Filters NONE Steam 1 RUN: 53189b76-3a4d-46e3-a1e8-e6562d3e4532